[Event "*** SCC Grand Prix: Titled Tuesday Blitz"]
[Site "Chess.com"]
[Date "2020.08.11"]
[Round "10"]
[White "Mikasinski"]
[Black "AttackSparrow"]
[Result "0-1"]
[WhiteElo "2427"]
[BlackElo "2340"]
[TimeControl "180+1"]
[EndTime "11:59:25 PDT"]
[Termination "AttackSparrow won by resignation"]

1. e4 {[%clk 0:03:00.9]} 1... c5 {[%clk 0:02:58.7]} 2. Nf3 {[%clk 0:03:00.7]}
2... e6 {[%clk 0:02:59]} 3. d4 {[%clk 0:03:00.7]} 3... cxd4 {[%clk 0:02:59.9]}
4. Nxd4 {[%clk 0:03:01.2]} 4... Nc6 {[%clk 0:03:00.2]} 5. Nc3 {[%clk 0:03:01.4]}
5... Qc7 {[%clk 0:03:00]} 6. Be2 {[%clk 0:03:01.2]} 6... a6 {[%clk 0:02:59.8]}
7. O-O {[%clk 0:02:55.5]} 7... Nf6 {[%clk 0:02:57.7]} 8. Be3 {[%clk 0:02:49.6]}
8... Be7 {[%clk 0:02:56.6]} 9. f4 {[%clk 0:02:43.3]} 9... d6 {[%clk 0:02:55.7]}
10. Kh1 {[%clk 0:02:43.3]} 10... b5 {[%clk 0:02:40.6]} 11. Nxc6 {[%clk
0:02:41.2]} 11... Qxc6 {[%clk 0:02:41.5]} 12. Bf3 {[%clk 0:02:29.4]} 12... Bb7
{[%clk 0:02:22.8]} 13. e5 {[%clk 0:02:27]} 13... Nd5 {[%clk 0:02:22.9]} 14. Nxd5
{[%clk 0:02:04]} 14... exd5 {[%clk 0:02:23.8]} 15. c3 {[%clk 0:01:55.6]} 15...
O-O {[%clk 0:02:16.7]} 16. Bd4 {[%clk 0:01:50.8]} 16... dxe5 {[%clk 0:02:15.3]}
17. fxe5 {[%clk 0:01:47.5]} 17... Bc5 {[%clk 0:02:13.7]} 18. Qd2 {[%clk
0:01:43.2]} 18... Bxd4 {[%clk 0:02:13.2]} 19. Qxd4 {[%clk 0:01:41.2]} 19... Rad8
{[%clk 0:02:11.2]} 20. Rad1 {[%clk 0:01:40.4]} 20... Rfe8 {[%clk 0:02:09.7]} 21.
Rfe1 {[%clk 0:01:34]} 21... Qe6 {[%clk 0:02:07.4]} 22. Qf4 {[%clk 0:01:30.3]}
22... f6 {[%clk 0:01:49.5]} 23. Bg4 {[%clk 0:01:29.5]} 23... Qe7 {[%clk
0:01:49.5]} 24. e6 {[%clk 0:01:15.1]} 24... Qd6 {[%clk 0:01:49.4]} 25. Qd4
{[%clk 0:01:03.9]} 25... Re7 {[%clk 0:01:46.3]} 26. h4 {[%clk 0:00:54.6]} 26...
Rc8 {[%clk 0:01:29.9]} 27. b3 {[%clk 0:00:42.3]} 27... Qg3 {[%clk 0:01:29.4]}
28. Bf3 {[%clk 0:00:31.4]} 28... Rce8 {[%clk 0:01:23]} 29. Re3 {[%clk
0:00:19.5]} 29... Qf2 {[%clk 0:00:48.6]} 30. Rd2 {[%clk 0:00:13.3]} 30... Qf1+
{[%clk 0:00:47]} 31. Kh2 {[%clk 0:00:13.8]} 31... Rxe6 {[%clk 0:00:46.7]} 32.
Rxe6 {[%clk 0:00:10.1]} 32... Rxe6 {[%clk 0:00:47.6]} 33. Bxd5 {[%clk
0:00:08.3]} 33... Bxd5 {[%clk 0:00:47.6]} 34. Qxd5 {[%clk 0:00:08.8]} 34... Qf4+
{[%clk 0:00:47.5]} 35. g3 {[%clk 0:00:07.6]} 35... Qe5 {[%clk 0:00:44.5]} 36.
Qa8+ {[%clk 0:00:03.4]} 36... Kf7 {[%clk 0:00:39.6]} 37. Rd7+ {[%clk 0:00:02.6]}
37... Kg6 {[%clk 0:00:38.9]} 38. Rd2 {[%clk 0:00:02.8]} 38... Qxc3 {[%clk
0:00:34.6]} 39. Rf2 {[%clk 0:00:02]} 39... Qe3 {[%clk 0:00:32.4]} 40. Qg2 {[%clk
0:00:01.9]} 40... h5 {[%clk 0:00:31.4]} 41. Rc2 {[%clk 0:00:02.2]} 41... Qe4
{[%clk 0:00:30.1]} 42. Rf2 {[%clk 0:00:02.8]} 42... Qxg2+ {[%clk 0:00:29.8]} 43.
Kxg2 {[%clk 0:00:03.5]} 43... Rc6 {[%clk 0:00:28.4]} 44. Kf3 {[%clk 0:00:03.7]}
44... Kf5 {[%clk 0:00:28.6]} 45. Re2 {[%clk 0:00:03]} 45... Rc3+ {[%clk
0:00:28]} 46. Kf2 {[%clk 0:00:03.6]} 46... g5 {[%clk 0:00:27.3]} 47. hxg5 {[%clk
0:00:03.7]} 47... fxg5 {[%clk 0:00:28.2]} 48. Kg2 {[%clk 0:00:03.8]} 48... g4
{[%clk 0:00:27.7]} 49. Rf2+ {[%clk 0:00:02.8]} 49... Kg5 {[%clk 0:00:27.7]} 50.
Rd2 {[%clk 0:00:02.7]} 50... Rc5 {[%clk 0:00:25.9]} 51. Kf2 {[%clk 0:00:02.5]}
51... Rf5+ {[%clk 0:00:25.1]} 52. Kg2 {[%clk 0:00:02.8]} 52... Re5 {[%clk
0:00:23.1]} 53. Kf2 {[%clk 0:00:02.7]} 53... h4 {[%clk 0:00:21.6]} 54. gxh4+
{[%clk 0:00:02.9]} 54... Kxh4 {[%clk 0:00:22.5]} 55. Kg2 {[%clk 0:00:03.4]}
55... Kg5 {[%clk 0:00:22]} 56. Kg3 {[%clk 0:00:02.6]} 56... Re3+ {[%clk
0:00:21.5]} 57. Kf2 {[%clk 0:00:03.1]} 57... Re4 {[%clk 0:00:21.6]} 58. Kg3
{[%clk 0:00:02.7]} 58... Re3+ {[%clk 0:00:21.9]} 59. Kf2 {[%clk 0:00:02.4]}
59... Kf4 {[%clk 0:00:22.2]} 60. Rd4+ {[%clk 0:00:02.4]} 60... Re4 {[%clk
0:00:22.6]} 61. Rd6 {[%clk 0:00:02.6]} 61... g3+ {[%clk 0:00:22.7]} 62. Kf1
{[%clk 0:00:03.2]} 62... Kf3 {[%clk 0:00:20.6]} 63. Rf6+ {[%clk 0:00:03.4]}
63... Rf4 {[%clk 0:00:21]} 64. Rxa6 {[%clk 0:00:02.3]} 64... Kg4+ {[%clk
0:00:19.4]} 65. Kg1 {[%clk 0:00:01.8]} 65... b4 {[%clk 0:00:17.8]} 66. Rg6+
{[%clk 0:00:02]} 66... Kf3 {[%clk 0:00:18.1]} 67. Rd6 {[%clk 0:00:01.9]} 67...
Re4 {[%clk 0:00:17.2]} 68. Rd3+ {[%clk 0:00:02]} 68... Kg4 {[%clk 0:00:16.5]}
69. Kg2 {[%clk 0:00:01.9]} 69... Re2+ {[%clk 0:00:16.5]} 70. Kf1 {[%clk
0:00:02.5]} 70... Rxa2 {[%clk 0:00:16.2]} 71. Rd4+ {[%clk 0:00:02.3]} 71... Kh3
{[%clk 0:00:15.6]} 72. Rxb4 {[%clk 0:00:02.1]} 72... Ra1+ {[%clk 0:00:15.9]} 73.
Ke2 {[%clk 0:00:02.4]} 73... g2 {[%clk 0:00:16.8]} 74. Rb7 {[%clk 0:00:02.3]}
74... g1=Q {[%clk 0:00:15.6]} 75. Rh7+ {[%clk 0:00:03]} 75... Kg4 {[%clk
0:00:14.6]} 76. Rg7+ {[%clk 0:00:03.8]} 76... Kf5 {[%clk 0:00:15]} 77. Rxg1
{[%clk 0:00:04.5]} 77... Rxg1 {[%clk 0:00:15.4]} 0-1

[Event "*** SCC Grand Prix: Titled Tuesday Blitz"]
[Site "Chess.com"]
[Date "2020.08.11"]
[Round "10"]
[White "FlamingPhoenix123"]
[Black "MF1966Idrisov"]
[Result "1-0"]
[WhiteElo "2550"]
[BlackElo "2380"]
[TimeControl "180+1"]
[EndTime "11:59:28 PDT"]
[Termination "FlamingPhoenix123 won by checkmate"]

1. e4 {[%clk 0:03:00.9]} 1... e5 {[%clk 0:02:57.2]} 2. Nf3 {[%clk 0:02:58.6]}
2... d6 {[%clk 0:02:56.1]} 3. d4 {[%clk 0:02:56.3]} 3... exd4 {[%clk 0:02:53.8]}
4. Nxd4 {[%clk 0:02:57.2]} 4... Nf6 {[%clk 0:02:54]} 5. Nc3 {[%clk 0:02:56.9]}
5... g6 {[%clk 0:02:54.3]} 6. Bg5 {[%clk 0:02:38.6]} 6... Bg7 {[%clk 0:02:53.5]}
7. Be2 {[%clk 0:02:32]} 7... O-O {[%clk 0:02:52.6]} 8. O-O {[%clk 0:02:31.6]}
8... Nc6 {[%clk 0:02:52.3]} 9. Nxc6 {[%clk 0:02:19.5]} 9... bxc6 {[%clk
0:02:51.9]} 10. e5 {[%clk 0:02:20.4]} 10... dxe5 {[%clk 0:02:29.2]} 11. Qxd8
{[%clk 0:02:21.3]} 11... Rxd8 {[%clk 0:02:28.6]} 12. Ne4 {[%clk 0:02:22.2]}
12... Rd6 {[%clk 0:02:12]} 13. Nxd6 {[%clk 0:02:20.4]} 13... cxd6 {[%clk
0:02:12.1]} 14. Rfd1 {[%clk 0:02:21.3]} 14... d5 {[%clk 0:02:10]} 15. c4 {[%clk
0:02:11.8]} 15... Be6 {[%clk 0:02:08.2]} 16. Bf3 {[%clk 0:02:06.2]} 16... e4
{[%clk 0:02:00.9]} 17. Be2 {[%clk 0:02:05.6]} 17... dxc4 {[%clk 0:02:01]} 18.
Rac1 {[%clk 0:02:00.1]} 18... Nd5 {[%clk 0:02:00.8]} 19. Rxc4 {[%clk 0:01:53]}
19... Bxb2 {[%clk 0:01:48.2]} 20. Rxc6 {[%clk 0:01:52.8]} 20... Kg7 {[%clk
0:01:38.2]} 21. Bc4 {[%clk 0:01:39.8]} 21... Nb4 {[%clk 0:01:27.3]} 22. Rc7
{[%clk 0:01:38.5]} 22... Be5 {[%clk 0:01:23.4]} 23. Bxe6 {[%clk 0:01:29.8]}
23... Bxc7 {[%clk 0:01:22.6]} 24. Rd7 {[%clk 0:01:29.8]} 24... Be5 {[%clk
0:01:13]} 25. a3 {[%clk 0:01:18.5]} 25... Nd3 {[%clk 0:01:12.5]} 26. Rxf7+
{[%clk 0:01:13.9]} 26... Kh8 {[%clk 0:01:11.8]} 27. Bd5 {[%clk 0:01:08.4]} 27...
Rb8 {[%clk 0:01:07.3]} 28. g3 {[%clk 0:01:02.9]} 28... Bd4 {[%clk 0:00:36.8]}
29. Kf1 {[%clk 0:00:49.8]} 29... Rb1+ {[%clk 0:00:33.2]} 30. Kg2 {[%clk
0:00:46.3]} 30... Rb8 {[%clk 0:00:28.4]} 31. Bxe4 {[%clk 0:00:41.7]} 31... Nxf2
{[%clk 0:00:28.5]} 32. Rxf2 {[%clk 0:00:28.6]} 32... Bxf2 {[%clk 0:00:28.4]} 33.
Bf6+ {[%clk 0:00:28.2]} 33... Kg8 {[%clk 0:00:26.7]} 34. Bd5+ {[%clk 0:00:26.3]}
34... Kf8 {[%clk 0:00:26.4]} 35. Kxf2 {[%clk 0:00:27.2]} 35... Rb5 {[%clk
0:00:25.3]} 36. Be4 {[%clk 0:00:24.3]} 36... Rb3 {[%clk 0:00:24]} 37. Bd4 {[%clk
0:00:22.6]} 37... Ke8 {[%clk 0:00:22.1]} 38. Bc5 {[%clk 0:00:20.2]} 38... Rc3
{[%clk 0:00:21.7]} 39. Bb4 {[%clk 0:00:18.2]} 39... Rc4 {[%clk 0:00:21.1]} 40.
Bd5 {[%clk 0:00:17.8]} 40... Rc7 {[%clk 0:00:20.8]} 41. Kf3 {[%clk 0:00:17.2]}
41... Kd7 {[%clk 0:00:18.2]} 42. h4 {[%clk 0:00:14.7]} 42... Rc1 {[%clk
0:00:17.5]} 43. Be4 {[%clk 0:00:14.5]} 43... Rf1+ {[%clk 0:00:16.2]} 44. Kg4
{[%clk 0:00:14.2]} 44... Ke6 {[%clk 0:00:16.5]} 45. Bd3 {[%clk 0:00:12.8]} 45...
Rg1 {[%clk 0:00:15.6]} 46. Bc4+ {[%clk 0:00:12.5]} 46... Kf6 {[%clk 0:00:15]}
47. Bc3+ {[%clk 0:00:11.7]} 47... Ke7 {[%clk 0:00:14.2]} 48. Bd4 {[%clk
0:00:10]} 48... Rc1 {[%clk 0:00:12.5]} 49. Bg8 {[%clk 0:00:09.5]} 49... h6
{[%clk 0:00:11]} 50. Bxa7 {[%clk 0:00:08.5]} 50... Rc8 {[%clk 0:00:08.2]} 51.
Bd5 {[%clk 0:00:07.2]} 51... Rd8 {[%clk 0:00:07.6]} 52. Bc5+ {[%clk 0:00:06.4]}
52... Kf6 {[%clk 0:00:07.4]} 53. Be4 {[%clk 0:00:07.3]} 53... h5+ {[%clk
0:00:05.3]} 54. Kf4 {[%clk 0:00:07.6]} 54... Rc8 {[%clk 0:00:05.4]} 55. Bd4+
{[%clk 0:00:07.6]} 55... Ke6 {[%clk 0:00:05.7]} 56. Bxg6 {[%clk 0:00:07.2]}
56... Rc4 {[%clk 0:00:04.5]} 57. Ke4 {[%clk 0:00:07.5]} 57... Ra4 {[%clk
0:00:04.1]} 58. Bxh5 {[%clk 0:00:07.7]} 58... Rxa3 {[%clk 0:00:03.8]} 59. Bf3
{[%clk 0:00:08.6]} 59... Kf7 {[%clk 0:00:02.1]} 60. Bh5+ {[%clk 0:00:07.9]}
60... Kg8 {[%clk 0:00:01.9]} 61. Bf3 {[%clk 0:00:08.8]} 61... Ra4 {[%clk
0:00:01.9]} 62. Ke3 {[%clk 0:00:08.5]} 62... Ra3+ {[%clk 0:00:02]} 63. Kf4
{[%clk 0:00:08.6]} 63... Ra4 {[%clk 0:00:02.3]} 64. Ke5 {[%clk 0:00:08.7]} 64...
Ra5+ {[%clk 0:00:02.2]} 65. Bd5+ {[%clk 0:00:08.9]} 65... Kh7 {[%clk 0:00:01.5]}
66. Ke4 {[%clk 0:00:08.1]} 66... Kh6 {[%clk 0:00:01.7]} 67. Be6 {[%clk 0:00:08]}
67... Kh5 {[%clk 0:00:01.7]} 68. Be3 {[%clk 0:00:07.4]} 68... Ra4+ {[%clk
0:00:01.6]} 69. Kf3 {[%clk 0:00:07.6]} 69... Ra3 {[%clk 0:00:01.9]} 70. Bf7#
{[%clk 0:00:07.3]} 1-0

[Event "*** SCC Grand Prix: Titled Tuesday Blitz"]
[Site "Chess.com"]
[Date "2020.08.11"]
[Round "10"]
[White "AJSC02"]
[Black "Juanovic"]
[Result "1/2-1/2"]
[WhiteElo "2257"]
[BlackElo "2088"]
[TimeControl "180+1"]
[EndTime "11:59:33 PDT"]
[Termination "Game drawn by repetition"]

1. e4 {[%clk 0:03:00.9]} 1... c5 {[%clk 0:02:56.8]} 2. Nf3 {[%clk 0:03:00.5]}
2... d6 {[%clk 0:02:56.8]} 3. d4 {[%clk 0:03:00.2]} 3... cxd4 {[%clk 0:02:57.7]}
4. Nxd4 {[%clk 0:03:01.1]} 4... Nf6 {[%clk 0:02:56.8]} 5. f3 {[%clk 0:03:01.3]}
5... g6 {[%clk 0:02:57.4]} 6. c4 {[%clk 0:03:01.2]} 6... Bg7 {[%clk 0:02:58]} 7.
Nc3 {[%clk 0:03:01.6]} 7... Nc6 {[%clk 0:02:58.6]} 8. Be3 {[%clk 0:03:01.9]}
8... O-O {[%clk 0:02:59.1]} 9. Be2 {[%clk 0:03:02.1]} 9... Bd7 {[%clk
0:02:58.5]} 10. O-O {[%clk 0:03:01.7]} 10... Nxd4 {[%clk 0:02:59]} 11. Bxd4
{[%clk 0:03:01.7]} 11... Bc6 {[%clk 0:02:59.9]} 12. Qd2 {[%clk 0:03:00.9]} 12...
Nd7 {[%clk 0:02:58.8]} 13. Be3 {[%clk 0:03:00.6]} 13... a5 {[%clk 0:02:59.1]}
14. b3 {[%clk 0:03:00]} 14... Nc5 {[%clk 0:02:59.5]} 15. Rab1 {[%clk 0:02:57.1]}
15... b6 {[%clk 0:02:59.9]} 16. Rfd1 {[%clk 0:02:54.4]} 16... f5 {[%clk
0:03:00.4]} 17. exf5 {[%clk 0:02:52.5]} 17... Rxf5 {[%clk 0:03:00.1]} 18. Nd5
{[%clk 0:02:47.1]} 18... Bxd5 {[%clk 0:02:59]} 19. cxd5 {[%clk 0:02:47.1]} 19...
Be5 {[%clk 0:02:35.6]} 20. f4 {[%clk 0:02:28]} 20... Bg7 {[%clk 0:02:30.2]} 21.
Bg4 {[%clk 0:02:22.3]} 21... Rf8 {[%clk 0:02:26.7]} 22. Be6+ {[%clk 0:01:56.6]}
22... Nxe6 {[%clk 0:02:19.1]} 23. dxe6 {[%clk 0:01:57.5]} 23... Rc8 {[%clk
0:02:12.1]} 24. Rbc1 {[%clk 0:01:56.8]} 24... b5 {[%clk 0:02:07.8]} 25. Rxc8
{[%clk 0:01:53.4]} 25... Qxc8 {[%clk 0:02:07.9]} 26. Qxa5 {[%clk 0:01:25.7]}
26... Qxe6 {[%clk 0:02:07.3]} 27. Re1 {[%clk 0:01:22.2]} 27... Qd5 {[%clk
0:01:57.7]} 28. Qb4 {[%clk 0:01:13.5]} 28... Ra8 {[%clk 0:01:51.3]} 29. a4
{[%clk 0:01:12.3]} 29... bxa4 {[%clk 0:01:50.8]} 30. bxa4 {[%clk 0:01:13.2]}
30... Qc6 {[%clk 0:01:48.7]} 31. a5 {[%clk 0:01:11.8]} 31... Qc3 {[%clk
0:01:44.7]} 32. Qxc3 {[%clk 0:01:00.4]} 32... Bxc3 {[%clk 0:01:45.6]} 33. Rc1
{[%clk 0:00:59.8]} 33... Bxa5 {[%clk 0:01:42.9]} 34. Ra1 {[%clk 0:00:58]} 34...
Kf7 {[%clk 0:01:35.6]} 35. Kf1 {[%clk 0:00:56.5]} 35... Ke6 {[%clk 0:01:03.5]}
36. Bb6 {[%clk 0:00:56.1]} 36... Rf8 {[%clk 0:00:59.5]} 37. Rxa5 {[%clk
0:00:49.1]} 37... Rxf4+ {[%clk 0:00:59.8]} 38. Bf2 {[%clk 0:00:46.6]} 38... d5
{[%clk 0:00:49.5]} 39. Ke2 {[%clk 0:00:44.8]} 39... g5 {[%clk 0:00:47]} 40. Ra7
{[%clk 0:00:36.8]} 40... Kf6 {[%clk 0:00:40.2]} 41. Bc5 {[%clk 0:00:30.8]} 41...
Re4+ {[%clk 0:00:38.7]} 42. Kf3 {[%clk 0:00:29.7]} 42... h5 {[%clk 0:00:39.6]}
43. Ra6+ {[%clk 0:00:27.8]} 43... e6 {[%clk 0:00:39.4]} 44. Ra8 {[%clk
0:00:25.1]} 44... Rf4+ {[%clk 0:00:39.5]} 45. Ke3 {[%clk 0:00:23.9]} 45... Re4+
{[%clk 0:00:37.8]} 46. Kd3 {[%clk 0:00:23.4]} 46... Rg4 {[%clk 0:00:36.9]} 47.
Rf8+ {[%clk 0:00:21.4]} 47... Kg7 {[%clk 0:00:36.2]} 48. g3 {[%clk 0:00:19.5]}
48... h4 {[%clk 0:00:32.9]} 49. Rf3 {[%clk 0:00:16.9]} 49... e5 {[%clk
0:00:31.7]} 50. Rf5 {[%clk 0:00:14.5]} 50... hxg3 {[%clk 0:00:30.1]} 51. hxg3
{[%clk 0:00:12.2]} 51... Rxg3+ {[%clk 0:00:31]} 52. Ke2 {[%clk 0:00:11.9]} 52...
Rc3 {[%clk 0:00:27.9]} 53. Bd6 {[%clk 0:00:10.5]} 53... Rc2+ {[%clk 0:00:27.9]}
54. Kd3 {[%clk 0:00:10.3]} 54... Rg2 {[%clk 0:00:17.4]} 55. Rxe5 {[%clk
0:00:10.1]} 55... g4 {[%clk 0:00:16.5]} 56. Rxd5 {[%clk 0:00:09.9]} 56... Kf6
{[%clk 0:00:17]} 57. Rd4 {[%clk 0:00:07.8]} 57... Kf5 {[%clk 0:00:15.3]} 58. Ke3
{[%clk 0:00:07.5]} 58... Rg1 {[%clk 0:00:13.7]} 59. Kf2 {[%clk 0:00:07.2]} 59...
Rb1 {[%clk 0:00:11.8]} 60. Bg3 {[%clk 0:00:05.9]} 60... Rb3 {[%clk 0:00:11.4]}
61. Rf4+ {[%clk 0:00:05.6]} 61... Kg5 {[%clk 0:00:11.8]} 62. Rc4 {[%clk
0:00:06.3]} 62... Rb2+ {[%clk 0:00:10.4]} 63. Kf1 {[%clk 0:00:06.3]} 63... Rb3
{[%clk 0:00:10.6]} 64. Kf2 {[%clk 0:00:06.3]} 64... Rf3+ {[%clk 0:00:10.1]} 65.
Kg2 {[%clk 0:00:06.2]} 65... Rb3 {[%clk 0:00:11]} 66. Rc5+ {[%clk 0:00:05.9]}
66... Kf6 {[%clk 0:00:11.3]} 67. Rc4 {[%clk 0:00:06.8]} 67... Kf5 {[%clk
0:00:11.3]} 68. Rf4+ {[%clk 0:00:06.5]} 68... Kg5 {[%clk 0:00:11.8]} 69. Rc4
{[%clk 0:00:07.4]} 69... Rb2+ {[%clk 0:00:11.9]} 70. Kf1 {[%clk 0:00:07.2]}
70... Kf5 {[%clk 0:00:11.5]} 71. Rd4 {[%clk 0:00:06]} 71... Ra2 {[%clk
0:00:10.6]} 72. Rf4+ {[%clk 0:00:05.8]} 72... Kg5 {[%clk 0:00:10.8]} 73. Rc4
{[%clk 0:00:06.7]} 73... Rb2 {[%clk 0:00:10.8]} 74. Rd4 {[%clk 0:00:06.1]} 74...
Rc2 {[%clk 0:00:11.1]} 75. Rd5+ {[%clk 0:00:05.9]} 75... Kf6 {[%clk 0:00:10.9]}
76. Rd4 {[%clk 0:00:06.8]} 76... Kf5 {[%clk 0:00:10.9]} 77. Rf4+ {[%clk
0:00:06.7]} 77... Kg5 {[%clk 0:00:11.4]} 78. Rd4 {[%clk 0:00:06.8]} 78... Kf5
{[%clk 0:00:11.3]} 79. Rf4+ {[%clk 0:00:06.7]} 79... Kg5 {[%clk 0:00:11.6]} 80.
Rd4 {[%clk 0:00:06.8]} 80... Kf5 {[%clk 0:00:11.9]} 1/2-1/2

[Event "*** SCC Grand Prix: Titled Tuesday Blitz"]
[Site "Chess.com"]
[Date "2020.08.11"]
[Round "10"]
[White "realmadridtv"]
[Black "deribas12345"]
[Result "1-0"]
[WhiteElo "2480"]
[BlackElo "2591"]
[TimeControl "180+1"]
[EndTime "11:59:35 PDT"]
[Termination "realmadridtv won by resignation"]

1. e4 {[%clk 0:03:00.6]} 1... c5 {[%clk 0:02:58.3]} 2. Nf3 {[%clk 0:02:59.8]}
2... d6 {[%clk 0:02:57.6]} 3. Nc3 {[%clk 0:02:57.1]} 3... Nf6 {[%clk 0:02:55.8]}
4. Bc4 {[%clk 0:02:56.8]} 4... e5 {[%clk 0:02:53.6]} 5. Ng5 {[%clk 0:02:53.1]}
5... d5 {[%clk 0:02:46.5]} 6. exd5 {[%clk 0:02:46]} 6... Bd6 {[%clk 0:02:43]} 7.
d3 {[%clk 0:02:41.7]} 7... O-O {[%clk 0:02:41.3]} 8. O-O {[%clk 0:02:37.1]} 8...
a6 {[%clk 0:02:38.1]} 9. a4 {[%clk 0:02:36.6]} 9... Nbd7 {[%clk 0:02:38.2]} 10.
Nce4 {[%clk 0:02:30.2]} 10... Nb6 {[%clk 0:02:36]} 11. a5 {[%clk 0:02:21.8]}
11... Nbxd5 {[%clk 0:02:28.5]} 12. Qf3 {[%clk 0:02:21.6]} 12... Nxe4 {[%clk
0:02:09.6]} 13. Nxe4 {[%clk 0:02:07.9]} 13... Nf4 {[%clk 0:02:03.9]} 14. Re1
{[%clk 0:01:51.2]} 14... Ne6 {[%clk 0:01:46.5]} 15. Qg3 {[%clk 0:01:45.4]} 15...
Kh8 {[%clk 0:01:18.9]} 16. Nxd6 {[%clk 0:01:38.4]} 16... Qxd6 {[%clk 0:01:18.5]}
17. Rxe5 {[%clk 0:01:30.3]} 17... Nd4 {[%clk 0:01:15.9]} 18. Bd2 {[%clk
0:00:51]} 18... f6 {[%clk 0:00:59.1]} 19. Re8 {[%clk 0:00:41.9]} 19... Nf3+
{[%clk 0:00:47.2]} 20. gxf3 {[%clk 0:00:39.6]} 20... Qxg3+ {[%clk 0:00:46.5]}
21. hxg3 {[%clk 0:00:36.3]} 21... Rxe8 {[%clk 0:00:47.4]} 22. Be3 {[%clk
0:00:32.7]} 22... Be6 {[%clk 0:00:46.8]} 23. Bxe6 {[%clk 0:00:25.7]} 23... Rxe6
{[%clk 0:00:47.7]} 24. Bxc5 {[%clk 0:00:21.9]} 24... Re2 {[%clk 0:00:47.4]} 25.
Rc1 {[%clk 0:00:22.2]} 25... h5 {[%clk 0:00:44]} 26. Kg2 {[%clk 0:00:18.7]}
26... Kh7 {[%clk 0:00:42.6]} 27. b4 {[%clk 0:00:18.2]} 27... g5 {[%clk
0:00:41.8]} 28. f4 {[%clk 0:00:16.5]} 28... g4 {[%clk 0:00:39.8]} 29. Be3 {[%clk
0:00:12.9]} 29... Re8 {[%clk 0:00:37.8]} 30. Kf1 {[%clk 0:00:13.2]} 30... R8xe3
{[%clk 0:00:34.8]} 31. fxe3 {[%clk 0:00:14.1]} 31... Rxe3 {[%clk 0:00:35.3]} 32.
Kf2 {[%clk 0:00:14.7]} 32... Rf3+ {[%clk 0:00:33.1]} 33. Kg2 {[%clk 0:00:15.4]}
33... Re3 {[%clk 0:00:32.6]} 34. Rf1 {[%clk 0:00:11.3]} 34... Kg6 {[%clk
0:00:31.4]} 35. Rf2 {[%clk 0:00:09]} 35... Kf5 {[%clk 0:00:31.5]} 36. Rd2 {[%clk
0:00:08.7]} 36... Re1 {[%clk 0:00:15.3]} 37. d4 {[%clk 0:00:08]} 37... Ke6
{[%clk 0:00:15.5]} 38. d5+ {[%clk 0:00:08.2]} 38... Kd6 {[%clk 0:00:14.9]} 39.
c4 {[%clk 0:00:09.1]} 39... Rb1 {[%clk 0:00:11.8]} 40. c5+ {[%clk 0:00:08.9]}
40... Kd7 {[%clk 0:00:11.5]} 41. d6 {[%clk 0:00:07.2]} 41... Rxb4 {[%clk
0:00:10.6]} 42. Re2 {[%clk 0:00:07.7]} 42... Rb5 {[%clk 0:00:09.3]} 43. Re7+
{[%clk 0:00:07.7]} 43... Kd8 {[%clk 0:00:08.8]} 44. Rc7 {[%clk 0:00:06.5]} 44...
Rxa5 {[%clk 0:00:09.2]} 45. Kf2 {[%clk 0:00:04.5]} 45... Ra2+ {[%clk 0:00:08.8]}
46. Ke3 {[%clk 0:00:04.5]} 46... Ra3+ {[%clk 0:00:09.1]} 47. Ke4 {[%clk
0:00:05]} 47... h4 {[%clk 0:00:08.4]} 48. gxh4 {[%clk 0:00:04.2]} 48... g3
{[%clk 0:00:09.3]} 49. Rg7 {[%clk 0:00:03.8]} 49... a5 {[%clk 0:00:09.8]} 50. h5
{[%clk 0:00:04.1]} 50... a4 {[%clk 0:00:09.8]} 51. h6 {[%clk 0:00:04.5]} 51...
g2 {[%clk 0:00:09.8]} 52. h7 {[%clk 0:00:04.9]} 52... Rh3 {[%clk 0:00:06.5]} 53.
Kd5 {[%clk 0:00:05.1]} 53... a3 {[%clk 0:00:04.1]} 54. Ke6 {[%clk 0:00:04.6]}
54... Re3+ {[%clk 0:00:04.3]} 55. Kf7 {[%clk 0:00:04.7]} 55... Rh3 {[%clk
0:00:05.2]} 56. Rxg2 {[%clk 0:00:04.3]} 56... Rxh7+ {[%clk 0:00:04.4]} 57. Ke6
{[%clk 0:00:05]} 57... Rh3 {[%clk 0:00:05.3]} 58. Rg7 {[%clk 0:00:05.2]} 58...
Re3+ {[%clk 0:00:04.7]} 59. Kd5 {[%clk 0:00:05.6]} 59... a2 {[%clk 0:00:05.3]}
60. Rxb7 {[%clk 0:00:06.2]} 60... Rd3+ {[%clk 0:00:03.7]} 61. Kc6 {[%clk
0:00:06]} 61... Ke8 {[%clk 0:00:03.7]} 62. Rb8+ {[%clk 0:00:06.1]} 62... Kf7
{[%clk 0:00:02.9]} 63. Ra8 {[%clk 0:00:07]} 63... Rd2 {[%clk 0:00:03.5]} 64.
Ra7+ {[%clk 0:00:07.3]} 64... Ke6 {[%clk 0:00:03.8]} 65. f5+ {[%clk 0:00:08.1]}
65... Kxf5 {[%clk 0:00:03.8]} 66. d7 {[%clk 0:00:09]} 66... Ke6 {[%clk 0:00:04]}
67. Rxa2 {[%clk 0:00:06.7]} 67... Rxd7 {[%clk 0:00:02.3]} 68. Re2+ {[%clk
0:00:06.1]} 68... Kf7 {[%clk 0:00:02.6]} 69. Kxd7 {[%clk 0:00:06.5]} 69... f5
{[%clk 0:00:03.5]} 1-0